Workbook

Sheet Transitieberekening
C6: BEREKENING TRANSITIEVERGOEDING **
C8: Naam: | D8: John Doe
C10: Geboren (dd/mm/jjjj): | D10: 1979-08-15 | E10: * | F10: Leeftijd in dienst: | G10: =IFERROR(IF(OR(D10=0,D11=0,D12=0),"-",IF(DATEDIF(D10,D11,"Y")=0,"",DATEDIF(D10,D11,"Y"))),"") -> 27
C11: In dienst (dd/mm/jjjj): | D11: 2007-07-01 | E11: * | F11: Leeftijd uit dienst: | G11: =IFERROR(IF(OR(D10=0,D11=0,D12=0),"-",IF(DATEDIF(D10,D12,"Y")=0,"",DATEDIF(D10,D12,"Y"))),"") -> 41
C12: Uit dienst (dd/mm/jjjj): | D12: 2021-01-01 | E12: *
C14: AOW gerechtigde leeftijd bereikt? | D14: Nee | E14: *
C16: BEREKENING INKOMEN **
D18: Invoer | F18: Maandbedragen | G18: Jaarbedragen
C19: Bruto maandloon | D19: 2500 | E19: * | F19: =D19 -> 2500 | G19: =IFERROR(12*D19,0) -> 30000
C20: Vaste looncomponenten | F20: =SUM(F21:F22) -> 166.6666667 | G20: =SUM(G21:G22) -> 2000
C21: Overwerkvergoedingen laatste jaar | D21: 1000 | F21: =IFERROR(SUM(D21/12),0) -> 83.33333333 | G21: =IFERROR(SUM(D21),0) -> 1000
C22: Ploegentoeslagen laatste jaar | D22: 1000 | F22: =IFERROR(SUM(D22/12),0) -> 83.33333333 | G22: =IFERROR(SUM(D22),0) -> 1000
C23: Variabele looncomponenten | F23: =SUM(F24:F26) -> 208.3333333 | G23: =SUM(G24:G26) -> 2500
C24: Som van bonussen laatste 3 jaar | D24: 7500 | F24: =IFERROR(SUM(D24/36),0) -> 208.3333333 | G24: =IFERROR(SUM(D24/3),0) -> 2500
C25: Som van winstuitkeringen laatste 3 jaar | F25: =IFERROR(SUM(D25/36),0) -> 0 | G25: =IFERROR(SUM(D25/3),0) -> 0
C26: Som van eindejaarsuitkeringen laatste 3 jaar | F26: =IFERROR(SUM(D26/36),0) -> 0 | G26: =IFERROR(SUM(D26/3),0) -> 0
C27: Subtotaal | F27: =IFERROR(SUM(F19+F20+F23),0) -> 2875 | G27: =SUM(G19+G20+G23) -> 34500
C28: Vakantiegeld | D28: ja | E28: * | G28: =IF(D28="Ja",0.08*G19,0) -> 2400
C29: 13e maand | D29: ja | E29: * | G29: =IF(D29="Ja",D19,0) -> 2500
C31: Totaal | F31: =G31/12 -> 3283.333333 | G31: =SUM(G27:G29) -> 39400
C34: TRANSITIEVERGOEDING:
C36: =IF(OR(D10=0,D11=0,D12=0,D14="maak keuze:",D19=0,D28="maak keuze:",D29="maak keuze:"),"Vul eerst de relevante cellen in.",IF(D14="Ja","Werknemer heeft AOW gerechtigde leefdtijd bereikt en daarom geen recht op een vergoeding.",IF(G38="nee",MIN(83000,G49),MIN(G31,G49)))) -> 14775
F38: Jaarsalaris hoger dan 83.000? | G38: =IF(G31>83000,"Ja","Nee") -> Nee
C40: SPECIFICATIE BEREKENING
C42: Uurloon | G42: =F31/(40*4.333) -> 18.9437649
C43: Dagloon uitgaande van 8 uur per dag | G43: =G42*8 -> 151.5501192
C45: Diensttijd | F45: Weging
C46: 1.in gehele jaren | D46: =DATEDIF(D11,D12,"y") -> 13 | F46: 0.3333333333 | G46: =IF(ISERROR(D46*(F46*F31)),"-",(D46*(F46*F31))) -> 14227.77778
C47: 2. Maanden na gehele jaren | D47: =DATEDIF(D11,D12,"YM") -> 6 | F47: 0.3333333333 | G47: =IF(ISERROR(D47*(F47*F31/12)),"-",(D47*(F47*F31/12))) -> 547.2222222
C48: 3. Dagen na gehele jaren en gehele maanden | D48: =D12-DATE(YEAR(D12),MONTH(D12),1) -> 0 | F48: 0.3333333333 | G48: =G43*D48/F31*F48*F31/12 -> 0
F49: Totaal | G49: =SUM(G46:G48) -> 14775
C51: De (interactieve) tools van Hulp Bij Reorganiseren zijn bedoeld als hulpmiddel. Met het beschikbaar stellen daarvan beoogt Hulp Bij Reorganiseren niet een juridisch advies te geven. Aan de uitkomst van de tools van Hulp Bij Reorganiseren kunnen geen rechten worden ontleend en Hulp Bij Reorganiseren is niet aansprakelijk voor (de gevolgen van) het gebruik van de tools. Mocht u vragen hebben over (de uitkomst van) de tools dan kunt u contact met ons opnemen via het contactformulier.
C52: Deze tool is gecreëerd in samenwerking met Uw Actuaris.
C53: * Verplicht veld
C54: ** Gebruik entertoets in deze tool
C74: Maak keuze:
C75: Ja
C76: Nee
C77: 2013-05-01
